bitfinex/quotes_ETHUSD_20250801
["timestamp","ask_amount","ask_price","bid_price","bid_amount"]
[1754078515656,6.8727,3522.0,3521.5,3.0]
[1754078515657,5.0711,3522.0,3521.9,4.765171]
[1754078515859,5.0711,3522.0,3521.9,12.875033]
[1754078516162,0.55,3522.8,3521.9,12.875033]
[1754078516163,4.96996127,3529.6,3525.4,2.83655755]
[1754078516387,0.4471,3533.3,3525.4,2.83655755]
[1754078516388,3.56712665,3530.4,3529.2,7.40894802]
[1754078516518,2.83050658,3533.0,3530.5,1.88479024]
[1754078516519,3.39712395,3532.3,3530.5,1.88479024]
[1754078516720,0.11151552,3532.2,3532.0,7.40894802]
[1754078516919,0.11151552,3532.1,3532.0,2.83125707]
[1754078517147,5.397,3532.6,3532.4,32.93093647]
[1754078517347,7.2671,3533.1,3532.4,2.83093647]
[1754078517532,0.1,3533.0,3531.5,7.40894802]
[1754078517732,0.1,3532.6,3532.3,30.78475419]
[1754078518046,0.1,3532.0,3531.2,7.40894802]
[1754078518364,0.1,3531.6,3531.5,5.781227]
[1754078518699,0.1,3531.4,3531.3,2.83181831]
[1754078518976,0.1,3531.4,3531.3,30.953767]
[1754078518977,0.4471,3531.4,3531.3,30.953767]
[1754078519178,0.4471,3531.4,3531.3,31.803564]
[1754078519379,0.1,3531.2,3531.1,2.8319787]
[1754078519563,0.001,3532.5,3531.7,30.73676457]
[1754078519564,0.1,3531.8,3531.7,30.73676457]
[1754078519749,5.576,3531.8,3531.7,2.83149757]
[1754078520077,0.1,3531.8,3531.7,11.46272557]
[1754078520261,0.1,3531.8,3531.7,2.83149757]
[1754078520468,7.8147,3531.8,3531.7,5.79981357]
[1754078520772,0.1,3531.2,3530.2,30.0]
[1754078520990,7.7147,3531.8,3530.7,2.83222817]
[1754078520991,0.1,3530.8,3530.7,2.83222817]
[1754078521276,6.0101,3530.8,3530.7,2.164463]
[1754078521442,7.8117,3530.8,3530.7,2.164463]
[1754078521639,2.3487,3530.8,3530.7,2.164463]
[1754078521840,6.815,3530.9,3523.2,8.14137975]
[1754078521841,0.1,3530.1,3530.0,2.83286118]
[1754078522153,5.455,3530.5,3530.4,31.04874722]
[1754078522352,1.8016,3531.7,3530.6,1.44595314]
[1754078522553,0.4471,3531.8,3531.7,3.110432]
[1754078522779,0.9971,3531.8,3531.7,8.94192957]
[1754078522975,5.453,3532.0,3531.9,2.83133724]
[1754078523143,1.8016,3532.6,3532.4,2.83093647]
[1754078523359,1e-08,3532.5,3532.4,35.83093647]
[1754078523871,1e-08,3532.9,3532.8,32.83061594]
[1754078524181,1e-08,3532.9,3532.8,35.83061594]
[1754078524337,2.24870001,3532.9,3529.0,1.49237801]
[1754078524543,0.55,3532.8,3532.7,7.013382]
[1754078524857,0.55,3532.8,3530.7,10.01382563]
[1754078524858,2.7987,3532.8,3531.4,5.438]
[1754078525061,1e-08,3532.9,3532.8,2.83061594]
[1754078525281,1e-08,3532.9,3532.8,17.81198794]
[1754078525582,1e-08,3532.9,3532.8,22.47639694]
[1754078526364,1e-08,3532.9,3532.8,25.47639694]
[1754078526562,1e-08,3532.9,3532.8,35.83061594]
[1754078527682,0.44710001,3532.9,3532.8,12.25698794]
[1754078527977,0.99710001,3532.9,3532.8,9.51277194]
[1754078528191,2.79870001,3532.9,3532.8,6.229532]
[1754078528343,2.79870001,3532.9,3532.8,3.0]
[1754078528546,2.79870001,3532.9,3532.8,6.112332]
[1754078528850,8.20370001,3532.9,3532.8,8.95670394]
[1754078529466,8.2037,3532.9,3532.8,11.11297394]
[1754078529638,8.2037,3532.9,3532.8,6.328888]
[1754078529841,8.2037,3532.9,3532.8,5.768316]
[1754078530042,8.2037,3532.9,3532.8,3.0]
[1754078530285,0.55,3532.8,3531.7,3.051659]
[1754078530442,0.55,3532.6,3530.9,19.00385]
[1754078530642,0.55,3532.4,3531.6,2.83154749]
[1754078530881,0.55,3532.2,3531.5,3.0]
[1754078531048,5.935,3532.1,3532.0,14.68435279]
[1754078531387,6.3821,3532.1,3532.0,3.791787]
[1754078531545,0.55,3532.0,3531.9,3.0]
[1754078531881,2.7987,3532.0,3531.9,9.09050524]
[1754078532191,5.385,3532.1,3532.0,5.83125707]
[1754078532419,1.71913851,3533.4,3532.9,2.83053582]
[1754078532697,1.71913851,3533.4,3533.3,20.25076837]
[1754078532871,1.8016,3533.8,3533.7,2.82989501]
[1754078533044,2.2487,3533.8,3533.7,12.32011601]
[1754078533240,2.2487,3533.8,3533.7,17.74922701]
[1754078533441,2.2487,3533.8,3533.7,5.768316]
[1754078533706,7.6167,3533.8,3533.7,5.768316]
[1754078533950,2.8304393,3533.1,3531.9,3.734891]
[1754078534310,2.83053582,3532.9,3530.5,30.0]
[1754078534449,8.53627499,3532.4,3530.4,4.620232]
[1754078534649,0.55,3531.7,3530.5,6.74764775]
[1754078534964,14.4620877,3532.3,3530.1,0.002]
[1754078534965,0.55,3531.5,3530.4,13.237674]
[1754078535163,0.55,3531.3,3530.2,7.747731]
[1754078535363,0.55,3531.3,3530.3,2.83262045]
[1754078535580,0.55,3531.3,3531.2,29.4728885]
[1754078535785,0.55,3531.3,3531.2,27.7642865]
[1754078535958,0.55,3531.3,3531.2,8.6003655]
[1754078536157,0.55,3531.6,3531.4,6.082]
[1754078536494,8.2871,3531.5,3531.4,3.0]
[1754078536806,8.2851,3531.5,3531.4,3.0]
[1754078537524,7.8542,3531.5,3531.4,5.83173812]
[1754078537740,5.911,3531.5,3531.4,27.03415612]
[1754078538040,5.361,3531.5,3531.4,27.03415612]
[1754078538615,5.361,3531.5,3531.4,35.83173812]
[1754078538784,6.804,3532.3,3532.2,14.04748476]
[1754078538999,12.145,3532.3,3532.2,11.63721276]
[1754078539323,14.5191,3532.3,3532.2,3.0]
[1754078539620,14.0882,3532.3,3532.2,21.721056]
[1754078539924,14.6382,3532.3,3532.2,3.0]
[1754078540110,23.60537499,3532.3,3532.2,3.0]
[1754078540901,0.001,3533.8,3532.3,30.0]
[1754078541101,0.001,3533.8,3532.4,32.83093647]
[1754078541307,5.342,3533.7,3532.7,3.0]
[1754078541496,5.342,3533.7,3533.6,5.888316]
[1754078541833,0.001,3533.8,3533.7,3.0]
[1754078542041,0.001,3533.8,3532.1,2.83112942]
[1754078542042,0.4309,3533.7,3533.2,3.0]
[1754078542323,2.3741,3533.7,3533.6,3.0]
[1754078542497,2.3741,3533.7,3533.6,5.8378]
[1754078542707,0.001,3533.8,3533.7,2.82989501]
[1754078542905,5.337,3533.8,3533.7,3.0]
[1754078543107,7.7061,3533.8,3533.7,3.0]
[1754078543305,2.3751,3533.8,3533.7,3.0]
[1754078543497,7.7031,3533.8,3533.7,3.0]
[1754078543894,8.2531,3533.8,3533.7,5.8711]
[1754078544234,0.55,3533.7,3532.1,22.522096]
[1754078544433,7.7031,3533.8,3532.7,3.224002]
[1754078544434,0.55,3533.4,3532.7,3.224002]
[1754078544639,2.3741,3533.6,3533.0,3.0]
[1754078544640,0.55,3533.5,3533.0,3.0]
[1754078544841,0.55,3533.5,3531.3,2.83176684]
[1754078544842,0.55,3533.2,3532.1,0.50453148]
[1754078545056,2.3741,3533.4,3531.1,1.4591048]
[1754078545057,0.55,3533.0,3531.8,2.83139494]
[1754078545334,0.55,3533.3,3532.7,2.844432]
[1754078545547,0.55,3533.3,3531.8,2.8314174]
[1754078545548,0.55,3533.3,3532.9,22.047768]
[1754078545746,0.55,3533.3,3531.8,0.50893606]
[1754078545747,0.55,3533.1,3532.2,3.0]
[1754078545949,0.55,3533.1,3533.0,5.8304557]
[1754078546150,0.001,3533.8,3533.3,26.947844]
[1754078546363,5.306,3533.7,3533.6,1.00298055]
[1754078546656,0.001,3533.8,3533.7,18.107974]
[1754078546808,5.304,3533.8,3533.7,20.93786901]
[1754078547001,0.001,3533.8,3533.7,16.51232776]
[1754078547203,5.303,3533.8,3533.7,10.95992102]
[1754078547425,7.6771,3533.8,3533.7,3.0]
[1754078547726,11.05691493,3533.8,3533.7,1.0]
[1754078547910,0.55,3533.0,3532.7,1.00313301]
[1754078548110,0.55,3532.8,3532.7,1.00313301]
[1754078548363,0.9809,3532.8,3532.7,1.00313301]
[1754078548505,2.9241,3532.8,3532.6,1.50421375]
[1754078548841,0.55,3532.6,3532.2,1.99246481]
[1754078549004,0.55,3532.4,3532.2,3.935701]
[1754078549204,0.55,3532.4,3532.3,0.26278261]
[1754078549414,0.55,3532.4,3532.3,3.11762761]
[1754078549737,0.55,3532.4,3532.3,6.11762761]
[1754078550046,7.95193803,3542.3,3532.8,3.0]
[1754078550047,0.55,3533.1,3532.8,3.0]
[1754078550220,5.833,3533.0,3532.9,0.26278261]
[1754078550414,5.833,3533.0,3532.9,4.50671154]
[1754078550641,6.2639,3533.0,3532.9,3.0]
[1754078550843,9.0943557,3533.0,3532.9,3.0]
[1754078551010,5.822,3533.0,3532.9,22.30844476]
[1754078551210,9.0833557,3533.0,3532.9,5.0104945]
[1754078551407,9.0833557,3533.0,3532.9,3.0]
[1754078551608,11.0265557,3533.0,3532.9,3.0]
[1754078551808,11.0265557,3533.0,3532.9,5.01318084]
[1754078552126,11.0265557,3533.0,3532.9,5.01319792]
[1754078552324,5.7545557,3533.0,3532.9,3.0]
[1754078552529,6.8,3533.5,3533.1,3.97909]
[1754078552732,3.38021537,3533.3,3533.2,1.51181675]
[1754078552961,0.55,3532.6,3532.4,1.00805543]
[1754078553246,5.814,3532.5,3532.4,1.00805543]
[1754078553746,5.814,3532.5,3531.2,3.44312904]
[1754078553747,5.814,3532.5,3532.3,1.51181675]
[1754078554251,5.814,3532.5,3531.3,2.49058102]
[1754078554252,0.55,3532.1,3531.7,2.0155608]
[1754078554438,6.2359,3532.0,3531.9,4.8027008]
[1754078554652,0.55,3531.9,3531.4,5.49058102]
[1754078554954,2.83113805,3532.2,3532.0,3.0]
[1754078555155,2.83113805,3532.2,3531.5,2.751452]
[1754078555156,0.55,3532.0,3531.6,3.0]
[1754078555359,0.55,3532.0,3531.9,5.768316]
[1754078555558,0.55,3532.0,3531.9,7.78788248]
[1754078555921,0.55,3532.0,3531.9,7.80265948]
[1754078556126,0.55,3532.0,3531.9,7.80545948]
[1754078556356,0.55,3532.0,3531.9,5.785893]
[1754078556564,0.55,3532.0,3531.9,3.0]
[1754078556721,0.55,3532.4,3532.0,3.0]
[1754078556922,2.83060794,3532.9,3532.2,12.397071]
[1754078557153,5.238,3532.8,3532.7,1.51803842]
[1754078557326,5.238,3532.8,3531.7,5.32207292]
[1754078557327,2.83093181,3532.5,3532.4,2.02410804]
[1754078557662,2.83093181,3532.5,3531.7,5.32206333]
[1754078557663,8.06685633,3532.5,3532.3,3.008628]
[1754078557824,8.06685633,3532.5,3532.2,2.49058102]
[1754078557825,3.38093647,3532.4,3532.2,2.49058102]
[1754078558022,3.38093647,3532.4,3532.3,3.0]
[1754078558227,5.75503647,3532.4,3532.3,3.0]
[1754078558476,5.75503647,3532.4,3532.3,5.02780686]
[1754078558778,5.75503647,3532.4,3532.3,3.0]
[1754078558936,5.75503647,3532.4,3531.2,3.48681343]
[1754078558937,3.38135499,3531.9,3531.2,3.48681343]
[1754078559141,3.38181831,3531.3,3531.2,3.48681343]
[1754078559322,10.42891831,3531.3,3530.8,3.48681343]
[1754078559527,2.8319787,3531.1,3530.8,3.48681343]
[1754078560072,3.2628787,3531.1,3530.8,3.48681343]
[1754078560223,3.2628787,3531.1,3530.5,0.002]
[1754078560425,8.4798787,3531.1,3530.5,0.002]
[1754078561242,9.0298787,3531.1,3530.5,0.002]
[1754078562240,8.0409787,3531.1,3531.0,7.582427]
[1754078562437,2.8318985,3531.2,3531.1,3.0]
[1754078562746,6.8,3531.8,3531.4,3.0]
[1754078562950,2.83181831,3531.3,3531.0,0.002]
[1754078563152,2.83181831,3531.3,3531.2,8.182]
[1754078563368,2.83170724,3531.5,3531.4,3.0]
[1754078563672,6.801,3531.9,3531.8,3.0]
[1754078563825,6.801,3531.9,3531.2,3.729989]
[1754078563826,11.994,3531.9,3531.2,3.729989]
[1754078564031,11.994,3531.9,3531.3,3.0]
[1754078564227,8.0224174,3531.8,3531.7,3.0]
[1754078564432,8.0194174,3531.8,3531.7,12.685722]
[1754078564662,8.0194174,3531.8,3531.0,2.83402902]
[1754078564663,2.83175802,3531.4,3531.0,0.002]
[1754078564871,6.801,3531.9,3531.0,0.002]
[1754078564872,9.6323394,3531.9,3531.5,3.0]
[1754078565087,5.187,3531.8,3531.6,13.555573]
[1754078565235,0.55,3531.7,3531.2,3.0]
[1754078565435,2.83181831,3531.3,3531.2,6.37385]
[1754078565657,2.8319787,3531.1,3531.0,0.002]
[1754078566292,2.8319787,3531.1,3531.0,5.39395]
[1754078566499,5.0772787,3531.1,3531.0,3.002]
[1754078566768,2.83237976,3530.6,3530.5,0.002]
[1754078567066,8.55437976,3530.6,3530.5,0.002]
[1754078567265,2.83237976,3530.6,3530.5,0.002]
[1754078567442,8.00237976,3530.6,3530.5,0.002]
[1754078567656,5.168,3530.6,3530.5,0.002]
[1754078567854,2.83226917,3530.8,3530.6,14.554142]
[1754078568058,2.83226917,3530.8,3530.7,8.762203]
[1754078568258,7.99626917,3530.8,3530.7,11.2336]
[1754078568456,8.54626917,3530.8,3530.7,3.0]
[1754078568682,8.97906917,3530.8,3530.7,3.0]
[1754078569000,3.38237976,3530.6,3530.5,0.002]
[1754078569367,5.62767976,3530.6,3530.5,0.002]
[1754078569894,17.58367976,3530.6,3530.5,0.002]
[1754078570371,17.58367976,3530.6,3530.5,1e-08]
[1754078572391,15.75717976,3530.6,3530.5,1e-08]
[1754078572753,2.83282183,3530.1,3529.6,13.167214]
[1754078573019,1.71363043,3531.5,3529.7,1.86063101]
[1754078573300,8.53627499,3531.3,3529.7,5.480448]
[1754078573458,7.27217742,3531.2,3529.7,2.83309689]
[1754078573663,2.83262433,3530.3,3529.7,10.283858]
[1754078573858,2.83247217,3530.5,3529.7,2.83303781]
[1754078574088,5.152,3530.4,3529.6,2.8331774]
[1754078574391,0.4328,3530.8,3530.0,9.082555]
[1754078574598,2.83237976,3530.6,3530.0,9.082555]
[1754078574763,2.83231315,3530.7,3529.9,2.83294144]
[1754078574764,5.149,3530.7,3529.9,24.067388]
[1754078575113,5.146,3530.6,3530.5,20.279407]
[1754078575292,5.146,3530.6,3530.5,3.0]
[1754078575594,5.0574,3530.6,3530.5,19.3529]
[1754078575763,9.63590451,3531.2,3530.5,16.311626]
[1754078575961,5.139,3531.1,3530.7,3.0]
[1754078576307,5.139,3531.1,3530.2,2.83269787]
[1754078576308,0.55,3531.0,3528.9,1.8323]
[1754078576487,2.83278499,3530.1,3529.8,3.0]
[1754078576793,5.138,3530.0,3529.9,3.0]
[1754078577006,5.138,3530.0,3529.9,6.758277]
[1754078577185,5.138,3530.0,3529.9,6.226277]
[1754078577760,5.134,3530.0,3529.6,3.0]
[1754078577956,5.134,3530.0,3529.6,5.83318036]
[1754078578194,5.134,3530.0,3529.7,2.012322]
[1754078578393,5.134,3530.0,3529.5,7.194118]
[1754078578580,5.134,3530.0,3529.8,3.0]
[1754078578781,5.134,3530.0,3529.9,8.482277]
[1754078578989,2.83353147,3529.2,3528.4,2.83414324]
[1754078579190,5.124,3529.1,3528.4,30.0]
[1754078579376,5.124,3529.0,3528.9,3.0]
[1754078579574,5.124,3529.0,3528.9,33.0]
[1754078579803,7.95766392,3529.0,3528.9,24.053316]
[1754078580114,5.119,3529.0,3528.6,3.606791]
[1754078580289,5.119,3529.0,3528.0,2.83439062]
[1754078580490,5.119,3529.0,3528.5,3.0]
[1754078580793,5.114,3528.9,3528.8,5.026372]
[1754078581187,5.114,3528.9,3528.8,14.317161]
[1754078581384,6.804,3529.3,3529.2,25.06696034]
[1754078581680,0.850816,3530.5,3530.4,24.717845]
[1754078581880,5.959816,3530.5,3529.9,0.002]
[1754078582083,0.03537742,3530.4,3529.9,0.002]
[1754078582389,5.108,3530.3,3530.0,3.0267]
[1754078582577,5.109,3530.2,3530.1,3.0]
[1754078582764,5.109,3530.2,3530.1,14.570223]
[1754078582966,5.109,3530.2,3530.1,3.0]
[1754078582967,8.37456498,3530.2,3530.1,3.0]
[1754078583208,15.89057499,3530.2,3526.7,1.8323]
[1754078583371,0.1,3528.4,3527.4,2.83494925]
[1754078583564,0.1,3528.2,3526.9,2.83535115]
[1754078583905,9.63888042,3528.8,3527.0,30.0]
[1754078583906,5.122,3528.1,3527.0,30.0]
[1754078584107,5.122,3528.1,3527.9,24.800936]
[1754078584266,5.122,3528.1,3528.0,18.20622]
[1754078584610,5.122,3528.1,3528.0,24.621818]
[1754078584768,5.122,3528.1,3528.0,13.440683]
[1754078584968,5.122,3528.1,3527.6,14.44752306]
[1754078585169,0.1,3528.2,3528.0,19.110212]
[1754078585395,5.112,3528.1,3528.0,21.24574612]
[1754078585781,5.112,3528.1,3528.0,33.00830212]
[1754078586411,5.112,3528.1,3528.0,14.037067]
[1754078586613,5.112,3528.1,3528.0,3.0]
[1754078586825,5.112,3528.1,3528.0,5.768716]
[1754078587028,0.1,3527.9,3527.2,9.459371]
[1754078587214,0.1,3527.9,3527.5,3.0]
[1754078587417,0.1,3527.9,3527.7,3.0]
[1754078587727,0.1,3527.6,3527.2,6.92976]
[1754078587904,5.099,3527.5,3527.3,3.0]
[1754078588101,5.099,3527.5,3526.8,0.452]
[1754078588102,5.099,3527.5,3527.4,6.736073]
[1754078588329,5.099,3527.5,3525.2,0.30231131]
[1754078588330,0.1,3527.0,3526.8,5.771138]
[1754078588627,0.1,3527.0,3526.8,5.83543155]
[1754078588834,0.1,3527.0,3526.9,9.714434]
[1754078589014,5.196,3527.0,3526.9,7.151782]
[1754078589400,5.096,3527.0,3526.9,9.98713315]
[1754078589605,0.73579499,3528.0,3526.5,0.452]
[1754078589606,0.1,3527.1,3527.0,13.399744]
[1754078589802,5.189,3527.1,3526.4,9.58108]
[1754078589988,0.1,3526.9,3526.8,7.686044]
[1754078590195,0.1,3526.9,3526.8,13.52147555]
[1754078590395,0.1,3527.0,3526.9,3.0]
[1754078590733,0.1,3527.0,3525.4,1.48718627]
[1754078590734,0.1,3526.4,3525.3,32.83663801]
[1754078590931,7.92184358,3526.3,3525.7,30.0]
[1754078591099,0.1,3526.1,3525.4,30.0]
[1754078591293,0.1,3526.1,3525.8,30.0]
[1754078591831,0.1,3525.7,3525.3,30.0]
[1754078592028,0.1,3525.3,3524.8,2.83699028]
[1754078592208,0.1,3525.3,3525.2,5.70806]
[1754078592527,0.1,3525.3,3525.2,2.373843]
[1754078592732,0.5328,3525.3,3525.1,0.30013916]
[1754078592933,0.1,3525.1,3525.0,2.83687943]
[1754078593116,0.1,3525.1,3525.0,24.76374643]
[1754078593324,5.174,3525.1,3525.0,24.76374643]
[1754078593508,5.174,3525.1,3525.0,18.79203243]
[1754078593708,5.174,3525.1,3525.0,15.79203243]
[1754078593909,5.174,3525.1,3525.0,11.55403843]
[1754078594112,5.174,3525.1,3525.0,16.80663143]
[1754078594439,5.174,3525.1,3525.0,10.284688]
[1754078594737,5.174,3525.1,3524.9,4.477491]
[1754078595037,5.174,3525.1,3525.0,2.83687943]
[1754078595198,5.174,3525.1,3524.9,11.72063826]
[1754078595403,5.174,3525.1,3525.0,5.693759]
[1754078595634,5.174,3525.1,3525.0,8.53063843]
[1754078595813,0.1,3525.1,3525.0,8.53063843]
[1754078596139,2.83560553,3526.6,3525.6,5.83639664]
[1754078596140,0.1,3525.7,3525.6,5.83639664]
[1754078596442,0.1,3525.7,3525.6,24.01329964]
[1754078596645,0.22899474,3525.8,3525.7,12.89059419]
[1754078596801,0.22899474,3525.8,3525.7,8.814282]
[1754078597006,0.22899474,3525.8,3525.7,22.36498519]
[1754078597201,5.18099474,3525.8,3525.7,22.79564319]
[1754078597417,0.1,3526.4,3526.3,2.83583359]
[1754078597739,0.1,3526.4,3526.3,21.75548959]
[1754078597740,5.151,3526.4,3526.3,21.75548959]
[1754078597900,5.151,3526.4,3526.3,20.22083959]
[1754078598102,5.051,3526.4,3526.3,26.72865559]
[1754078598318,5.051,3526.4,3526.3,25.42387959]
[1754078598527,0.1,3526.9,3526.8,2.83537082]
[1754078598730,5.147,3526.9,3526.7,13.25579869]
[1754078598920,0.1,3526.9,3526.8,31.17309255]
[1754078599117,5.143,3526.9,3526.8,30.45160855]
[1754078599551,5.143,3526.9,3526.8,29.54746955]
[1754078599731,5.143,3526.9,3526.8,11.82475555]
[1754078600205,5.143,3526.9,3526.6,3.0]
[1754078600409,0.4722,3526.8,3526.7,3.0]
[1754078600605,0.1,3526.9,3526.8,16.77108955]
[1754078600836,5.035,3526.9,3526.8,16.77108955]
[1754078601007,0.1,3527.1,3526.9,35.83535115]
[1754078601341,0.39725205,3527.5,3527.4,2.83494925]
[1754078601518,0.29725205,3527.5,3527.4,8.688664]
[1754078601721,5.43025205,3527.5,3527.4,3.0]
[1754078602038,8.73732093,3527.5,3527.4,3.0]
[1754078602253,10.55132093,3527.5,3527.4,3.0]
[1754078603425,5.89845205,3527.5,3527.4,3.0]
[1754078603621,8.73332093,3527.5,3527.4,3.0]
[1754078603939,5.32025205,3527.5,3527.4,3.0]
[1754078604163,5.31725205,3527.5,3527.4,35.53315925]
[1754078604308,5.31725205,3527.5,3527.4,18.33065125]
[1754078604606,5.31725205,3527.5,3527.4,18.39332025]
[1754078605413,5.31725205,3527.5,3527.4,36.30404925]
[1754078605835,5.31725205,3527.5,3527.4,21.06670725]
[1754078606061,5.31725205,3527.5,3527.4,20.59760725]
[1754078606264,5.31725205,3527.5,3527.4,12.63924725]
[1754078606406,5.31725205,3527.5,3527.4,24.73482325]
[1754078606613,0.29725205,3527.5,3527.4,24.73482325]
[1754078606914,5.30425205,3527.5,3527.4,23.50363725]
[1754078607314,5.30425205,3527.5,3527.4,36.30404925]
[1754078607515,5.30425205,3527.5,3527.4,35.83494925]
[1754078607833,5.30425205,3527.5,3527.4,10.50191425]
[1754078608409,5.30425205,3527.5,3527.4,17.81474425]
[1754078608842,5.30425205,3527.5,3527.4,14.81474425]
[1754078609048,6.81,3528.4,3527.5,3.0]
[1754078609222,6.81,3528.4,3528.2,2.83430644]
[1754078609223,4.999,3528.3,3528.2,2.83430644]
[1754078609424,4.999,3528.3,3528.2,24.94126274]
[1754078609625,5.099,3528.3,3528.2,21.58731674]
[1754078609811,4.999,3528.3,3528.2,20.63233574]
[1754078610313,6.81,3528.4,3528.3,32.48791111]
[1754078610517,0.1,3529.0,3528.9,14.478577]
[1754078610829,4.991,3529.0,3528.9,17.07828024]
[1754078611017,4.991,3529.0,3528.9,19.91202446]
[1754078611218,4.991,3529.0,3528.9,17.07828024]
[1754078611446,4.991,3529.0,3528.9,15.77594324]
[1754078611652,7.3772,3529.0,3528.9,3.0]
[1754078611860,10.21086392,3529.0,3528.9,3.0]
[1754078612429,2.83401892,3528.6,3528.0,3.0]
[1754078612765,0.1,3528.3,3528.1,3.0]
[1754078613068,4.982,3528.2,3528.1,5.311982]
[1754078613365,4.982,3528.2,3528.1,8.311982]
[1754078613581,5.4542,3528.2,3528.0,0.30109005]
[1754078613716,0.1,3527.5,3527.4,0.002]
[1754078613921,7.9472463,3527.5,3527.4,0.002]
[1754078614115,10.19806888,3527.5,3527.4,0.002]
[1754078614823,10.74806888,3527.5,3527.4,0.002]
[1754078616572,10.74806888,3527.5,3527.4,1e-08]
[1754078618372,10.74206888,3527.5,3527.4,1e-08]
[1754078618573,10.64206888,3527.5,3527.4,1e-08]
[1754078618869,10.74206888,3527.5,3527.4,1e-08]
[1754078619073,10.74106888,3527.5,3527.4,1e-08]
[1754078619365,3.40706888,3527.5,3527.4,1e-08]
[1754078619543,8.37606888,3527.5,3527.4,1e-08]
[1754078619716,5.068,3527.5,3527.4,1e-08]
[1754078619918,0.1,3527.5,3527.4,1e-08]
[1754078620198,5.067,3527.5,3527.4,9.47979377]
[1754078620372,5.067,3527.5,3527.4,2.76831601]
[1754078620576,5.067,3527.5,3527.4,1e-08]
[1754078620718,10.2234463,3527.5,3527.4,1e-08]
[1754078621059,10.73806888,3527.5,3527.4,1e-08]
[1754078623517,10.72406888,3527.5,3527.4,1e-08]
[1754078625565,0.1,3527.5,3527.4,1e-08]
[1754078625953,4.944,3527.5,3527.4,1e-08]
[1754078626268,5.044,3527.5,3527.4,3.00000001]
[1754078626421,0.1,3527.7,3527.6,2.83478852]
[1754078626622,0.001,3527.9,3527.6,19.31258952]
[1754078626919,0.001,3527.9,3527.8,11.75580981]
[1754078627244,0.001,3527.9,3527.8,14.76626581]
[1754078627421,0.001,3527.9,3527.8,17.03256581]
[1754078627757,4.946,3527.9,3527.8,13.47647996]
[1754078628300,4.946,3527.9,3527.8,23.23897396]
[1754078628591,4.946,3527.9,3527.8,18.00654496]
[1754078628950,4.946,3527.9,3527.8,12.40302596]
[1754078629155,4.946,3527.9,3527.8,35.46798696]
[1754078629352,4.946,3527.9,3527.8,11.29358296]
[1754078629555,4.946,3527.9,3527.8,13.12058296]
[1754078629556,4.936,3527.9,3527.8,13.12058296]
[1754078629788,4.936,3527.9,3527.8,11.29358296]
[1754078629989,4.936,3527.9,3527.8,16.70638796]
[1754078630296,4.936,3527.9,3527.8,14.75739396]
[1754078630481,4.936,3527.9,3527.8,11.05380896]
[1754078631160,4.936,3527.9,3527.8,25.48427096]
[1754078631561,4.936,3527.9,3527.8,8.54414296]
[1754078631762,4.936,3527.9,3527.8,6.48766079]
[1754078631963,4.936,3527.9,3527.8,25.17533279]
[1754078632162,4.936,3527.9,3527.8,31.31135179]
[1754078632364,4.936,3527.9,3527.8,28.18711079]
[1754078633020,6.99,3529.5,3529.1,2.8335126]
[1754078633160,2.83342305,3529.3,3529.2,3.0]
[1754078633368,2.3667,3529.3,3528.6,3.0]
[1754078633676,0.1,3528.7,3528.6,12.312728]
[1754078633876,5.017,3528.7,3528.4,3.0]
[1754078634066,0.1,3528.7,3528.6,12.19041214]
[1754078634266,5.015,3528.7,3528.6,11.60510414]
[1754078634512,5.015,3528.7,3528.6,7.428411]
[1754078634675,5.015,3528.7,3528.6,6.464427]
[1754078635006,5.015,3528.7,3528.6,5.962427]
[1754078635610,5.015,3528.7,3528.6,3.0]
[1754078635795,5.015,3528.7,3528.6,6.563427]
[1754078636287,4.915,3528.7,3528.6,9.39741214]
[1754078636703,0.1,3529.0,3528.8,9.43343]
[1754078636998,0.1,3529.1,3529.0,6.439582]
[1754078637203,0.1,3529.1,3529.0,6.247]
[1754078637607,0.1,3529.1,3529.0,6.43313924]
[1754078637937,5.003,3529.1,3529.0,6.43313924]
[1754078638302,5.003,3529.1,3529.0,9.53645024]
[1754078638498,5.003,3529.1,3529.0,7.57023824]
[1754078639231,5.003,3529.1,3529.0,9.45454924]
[1754078639387,5.003,3529.1,3529.0,6.61954924]
[1754078640003,4.903,3529.1,3529.0,6.61954924]
[1754078640210,5.003,3529.1,3529.0,6.61954924]
[1754078640387,5.003,3529.1,3529.0,6.60776124]
[1754078640592,8.29658363,3529.1,3529.0,3.0]
[1754078641745,10.10328363,3529.1,3529.0,3.0]
[1754078642135,2.93459514,3527.9,3527.0,2.83726087]
[1754078642438,2.83446687,3528.1,3527.1,6.364099]
[1754078642439,0.1,3527.7,3527.1,6.364099]
[1754078642594,2.93486888,3527.5,3527.1,0.20805137]
[1754078642797,2.93486888,3527.5,3527.0,0.002]
[1754078643025,2.9702463,3527.5,3527.4,5.89854378]
[1754078643220,4.888,3527.6,3527.4,1e-08]
[1754078643421,4.888,3527.6,3527.5,10.890323]
[1754078643621,2.83486888,3527.5,3527.4,0.18074269]
[1754078643841,2.83486888,3527.5,3527.4,7.12709901]
[1754078644051,2.93486888,3527.5,3527.4,1e-08]
[1754078644242,3.39486888,3527.5,3527.4,0.18265233]
[1754078644441,3.39486888,3527.5,3527.4,1e-08]
[1754078645030,3.39486888,3527.5,3527.4,3.00000001]